[Event "CHI-ch Women 2020"]
[Site "Las Condes"]
[Date "2020.02.16"]
[Round "7.6"]
[White "Reyes Jara, Paula"]
[Black "Hormazabal Figueroa, Constanza Valentina"]
[Result "1-0"]
[ECO "B13"]
[WhiteElo "1860"]
[BlackElo "1786"]
[Annotator "NA RC"]
[PlyCount "64"]
[EventDate "2020.02.11"]
[EventType "tourn"]
[EventCountry "CHI"]
[SourceTitle "playchess.com"]
[Source "ChessBase"]
[SourceQuality "1"]
[TimeControl "5400+30"]

{[%evp 8,64,27,5,23,22,22,0,18,8,10,36,34,2,37,34,38,27,34,18,12,20,26,20,43,19,18,15,41,26,18,8,20,26,8,18,18,0,0,-109,-94,-107,15,20,12,0,0,0,0,-22,-7,0,0,0,0,0,0,0,0]} 1. e4 {[%emt 0:03:14]} c6 {[%emt 0:00:00]} 2. d4 {[%emt 0:00:16]} d5 {[%emt 0:00:00]} 3. exd5 {[%emt 0:00:24]} cxd5 {[%emt 0:00:00]} 4. Bd3 {[%emt 0:00:17]} Nc6 {[%emt 0:00:07]} 5. Ne2 {[%emt 0:00:28]} Bg4 {[%emt 0:01:14]} 6. c3 {[%emt 0:00:16]} Qc7 {[%emt 0:01:33]} 7. Qb3 {[%emt 0:02:34] 7.0-0 is becoming the main line. B13: Caro-Kann: Exchange Variation and Panov-Botvinnik Attack.} e6 {[%emt 0:04:02]} 8. Bf4 {[%emt 0:02:43]} Bd6 {[%emt 0:00:16]} 9. Bxd6 {[%emt 0:00:28]} Qxd6 {[%emt 0:00:08]} 10. Ng3 {[%emt 0:00:50] [#]} Nge7 $146 {[%emt 0:02:56]} ({Predecessor:} 10... e5 11. Bf5 Bxf5 12. Nxf5 Qg6 13. Nxg7+ Kf8 14. Nh5 {½-½ (14) Proksch,G (2079)-Stumpf,H (2245) Bad Woerishofen 2001}) 11. h3 {[%emt 0:06:55]} Bf5 $1 {[%emt 0:00:09]} 12. Nxf5 {[%emt 0:00:51]} ({But not} 12. Qxb7 Rb8 $17) 12... Nxf5 {[%emt 0:00:20]} 13. Bxf5 {[%emt 0:00:19]} exf5 {[%emt 0:00:06]} 14. O-O {[%emt 0:00:06]} O-O {[%emt 0:00:24]} 15. Nd2 {[%emt 0:00:59]} a6 {[%emt 0:02:02]} 16. Rae1 {[%emt 0:02:19]} b5 {[%emt 0:03:19]} 17. Nf3 {[%emt 0:01:39]} Rfe8 {[%emt 0:00:41]} 18. Rxe8+ {[%emt 0:03:45]} Rxe8 {[%emt 0:00:12]} 19. Re1 {[%emt 0:00:56]} Re4 {[%emt 0:00:56]} 20. a4 {[%emt 0:08:21]} b4 {[%emt 0:03:28]} 21. Rc1 {[%emt 0:04:21]} g6 {[%emt 0:03:53]} 22. cxb4 {[%emt 0:34:57]} Nxd4 {[%emt 0:05:33]} 23. Rc8+ {[%emt 0:01:22]} (23. Nxd4 $11 {was the only way to keep the balance.} Rxd4 24. b5) 23... Kg7 {[%emt 0:00:33]} 24. Qc3 {[%emt 0:00:20] [#]} Qf6 {[%emt 0:03:08]} (24... Qxb4 $1 $17 {[%mdl 512]} 25. Nxd4 (25. Qxb4 Nxf3+) 25... Qxd4) 25. Nxd4 {[%emt 0:00:17]} Qxd4 {[%emt 0:00:30]} 26. Rc5 {[%emt 0:02:37]} Kh6 {[%emt 0:07:59]} 27. Qxd4 {[%emt 0:05:36]} Rxd4 {[%emt 0:00:07]} 28. b5 {[%emt 0:00:08]} axb5 {[%emt 0:03:26]} 29. Rxb5 {[%emt 0:01:41]} Rxa4 {[%emt 0:02:28]} 30. Rxd5 {[%emt 0:00:05]} Ra1+ {[%emt 0:00:08]} 31. Kh2 {[%emt 0:00:24]} Rb1 $11 {[%emt 0:00:13]} 32. Rb5 {[%emt 0:01:16]} Kg7 {[%emt 0:05:35]} 1-0

[Event "CHI-ch Women 2020"]
[Site "Las Condes"]
[Date "2020.02.16"]
[Round "7.9"]
[White "Luna Benalcazar, Gianella"]
[Black "Melin Contreras, Valeria"]
[Result "1-0"]
[ECO "B07"]
[WhiteElo "1756"]
[BlackElo "1685"]
[Annotator "NA RC"]
[PlyCount "45"]
[EventDate "2020.02.11"]
[EventType "tourn"]
[EventCountry "CHI"]
[SourceTitle "playchess.com"]
[Source "ChessBase"]
[SourceQuality "1"]
[TimeControl "5400+30"]

1. e4 {[%emt 0:00:00]} d6 {[%emt 0:00:13]} 2. d4 {[%emt 0:00:05]} Nf6 {[%emt 0:00:13]} 3. Nc3 {[%emt 0:01:23]} g6 {[%emt 0:00:12]} 4. Be2 {[%emt 0:00:28]} Bg7 {[%emt 0:00:59]} 5. Be3 {[%emt 0:00:09]} O-O {[%emt 0:01:02]} 6. g4 {[%emt 0:00:37]} c6 {[%emt 0:05:58]} 7. g5 {[%emt 0:00:21]} Nfd7 {[%emt 0:01:49]} 8. h4 {[%emt 0:01:16]} b5 {[%emt 0:02:55]} 9. Bf3 {[%emt 0:02:02]} Nb6 {[%emt 0:01:39]} 10. Qe2 {[%emt 0:12:01]} b4 {[%emt 0:03:31]} 11. Nd1 {[%emt 0:02:09]} a5 {[%emt 0:01:13]} 12. Qf1 {[%emt 0:00:45]} Ba6 {[%emt 0:00:29]} 13. Qh3 {[%emt 0:01:44]} Nc4 {[%emt 0:14:33]} 14. h5 {[%emt 0:02:29]} e5 {[%emt 0:02:42]} 15. hxg6 {[%emt 0:01:53]} fxg6 {[%emt 0:00:19]} 16. Qxh7+ {[%emt 0:05:39]} Kf7 {[%emt 0:00:08]} 17. Rh6 {[%emt 0:00:51]} Rh8 {[%emt 0:11:04]} 18. Qxg6+ {[%emt 0:00:24]} Kf8 {[%emt 0:02:19]} 19. Qf5+ {[%emt 0:04:52]} Kg8 {[%emt 0:01:19]} 20. Qe6+ {[%emt 0:00:50]} Kf8 {[%emt 0:00:19]} 21. g6 {[%emt 0:06:56]} Qf6 {[%emt 0:11:07]} 22. Rxh8+ {[%emt 0:00:22]} Bxh8 {[%emt 0:06:18]} 23. Bh6+ {[%emt 0:00:09]} 1-0

[Event "CHI-ch Women 2020"]
[Site "Las Condes"]
[Date "2020.02.16"]
[Round "7.10"]
[White "Fuentes Inzunza, Lesly"]
[Black "Zuniga Lara, Catalina Paz"]
[Result "1/2-1/2"]
[ECO "E87"]
[WhiteElo "1851"]
[BlackElo "1712"]
[Annotator "NA RC"]
[PlyCount "65"]
[EventDate "2020.02.11"]
[EventType "tourn"]
[EventCountry "CHI"]
[SourceTitle "playchess.com"]
[Source "ChessBase"]
[SourceQuality "1"]
[TimeControl "5400+30"]

{[%evp 11,65,54,52,54,47,66,68,32767,85,72,90,31,132,110,142,85,102,39,40,8,20,18,40,13,31,41,85,135,127,211,207,0,0,0,3,10,0,0,0,0,83,8,10,0,10,0,9,0,5,0,0,-21,-19,-32,101,93]} 1. d4 {[%emt 0:00:00]} Nf6 {[%emt 0:00:17]} 2. c4 {[%emt 0:00:00]} g6 {[%emt 0:00:24]} 3. Nc3 {[%emt 0:00:00]} Bg7 {[%emt 0:00:04]} 4. e4 {[%emt 0:00:02]} d6 {[%emt 0:00:11]} 5. f3 {[%emt 0:00:11]} Nbd7 {[%emt 0:01:16]} 6. Be3 {[%emt 0:00:31]} O-O {[%emt 0:03:42]} 7. Nh3 {[%emt 0:01:10]} e5 {[%emt 0:00:49] is the legacy move (7...a6).} 8. d5 {[%emt 0:02:00]} a5 {[%emt 0:00:53]} 9. Qd2 {[%emt 0:01:58] E87: King's Indian: Sämisch: 6...e5 7 d5.} b6 {[%emt 0:00:38]} 10. Be2 {[%emt 0:02:36]} Nc5 {[%emt 0:00:31] [#]} 11. Nf2 {[%emt 0:00:49]} ({Better is} 11. g4 $1 $16) 11... Ne8 {[%emt 0:05:33] [#]} ({Black should try} 11... Nh5 $1 $14) 12. h4 $146 {[%emt 0:11:34]} ({Predecessor:} 12. g4 f6 13. h4 Qe7 14. h5 g5 15. h6 Bh8 16. Rh5 Kf7 17. Nh3 Rg8 18. O-O-O {½-½ (62) Liu,B-Ang,A Queenstown 2012}) 12... f5 {[%emt 0:18:24]} 13. Bg5 {[%emt 0:12:41]} Bf6 {[%emt 0:00:16] [#]} 14. Bh6 {[%emt 0:01:53]} ({White should try} 14. exf5 $1 $16 gxf5 15. Nd3) 14... Bg7 {[%emt 0:00:14]} 15. h5 {[%emt 0:04:00]} f4 {[%emt 0:00:36]} 16. hxg6 {[%emt 0:01:12]} hxg6 {[%emt 0:00:15]} 17. O-O-O {[%emt 0:01:11]} Bxh6 {[%emt 0:07:57]} 18. Rxh6 {[%emt 0:00:56]} Qg5 {[%emt 0:00:04]} (18... Kg7 $11 19. Rh2 (19. Rdh1 Nf6 $14) 19... Bd7) 19. Rdh1 {[%emt 0:08:27]} Qxg2 {[%emt 0:01:59] [#]} 20. Qe1 $1 {[%emt 0:01:23]} Qg5 {[%emt 0:07:22]} 21. Qg1 $2 {[%emt 0:10:01]} ({White should play} 21. R1h2 $18) 21... Qxg1+ {[%emt 0:00:51]} 22. Rxg1 {[%emt 0:00:03]} Rf7 {[%emt 0:00:06]} 23. Rhxg6+ {[%emt 0:00:36]} Rg7 {[%emt 0:00:05]} 24. Rxg7+ {[%emt 0:00:31]} Nxg7 {[%emt 0:00:04]} 25. Nb5 {[%emt 0:00:30]} Na6 {[%emt 0:00:06] [#]} (25... Bd7 $1 $11) 26. Bf1 {[%emt 0:01:02]} (26. Rg6 $1 $16) 26... Kf7 {[%emt 0:00:40]} 27. Rh1 {[%emt 0:02:34]} Bd7 {[%emt 0:00:25]} 28. Nc3 {[%emt 0:03:58]} Nc5 {[%emt 0:02:05]} 29. Kc2 {[%emt 0:00:23]} Kg6 {[%emt 0:00:29]} 30. b3 {[%emt 0:00:59]} Nh5 {[%emt 0:00:20]} 31. Rg1+ {[%emt 0:00:45]} Kf6 {[%emt 0:00:47]} 32. Ne2 $15 {[%emt 0:09:15]} b5 {[%emt 0:00:22]} (32... Ke7 $11 {remains equal.}) 33. cxb5 {[%emt 0:03:30]} 1/2-1/2

[Event "CHI-ch Women 2020"]
[Site "Las Condes"]
[Date "2020.02.17"]
[Round "8.6"]
[White "Hormazabal Figueroa, Constanza Valentina"]
[Black "Zuniga Lara, Catalina Paz"]
[Result "1/2-1/2"]
[ECO "B06"]
[WhiteElo "1786"]
[BlackElo "1712"]
[Annotator "NA RC"]
[PlyCount "50"]
[EventDate "2020.02.11"]
[EventType "tourn"]
[EventCountry "CHI"]
[SourceTitle "playchess.com"]
[Source "ChessBase"]
[SourceQuality "1"]
[TimeControl "5400+30"]

1. e4 {[%emt 0:00:00]} g6 {[%emt 0:06:35]} 2. d4 {[%emt 0:00:00]} Bg7 {[%emt 0:00:06]} 3. Nf3 {[%emt 0:00:09]} d6 {[%emt 0:00:45]} 4. Nc3 {[%emt 0:00:42]} Nd7 {[%emt 0:02:30]} 5. Bc4 {[%emt 0:05:05]} Nb6 {[%emt 0:06:29]} 6. Bb3 {[%emt 0:01:10]} Nf6 {[%emt 0:00:04]} 7. a4 {[%emt 0:01:40]} a5 {[%emt 0:01:08]} 8. O-O {[%emt 0:00:51]} O-O {[%emt 0:00:26]} 9. Qe2 {[%emt 0:00:46]} Nbd7 {[%emt 0:02:23]} 10. Rd1 {[%emt 0:02:02]} Ne8 {[%emt 0:11:25]} 11. e5 {[%emt 0:06:13]} h6 {[%emt 0:04:39]} 12. e6 {[%emt 0:10:25]} fxe6 {[%emt 0:00:28]} 13. Qxe6+ {[%emt 0:01:57]} Kh7 {[%emt 0:00:06]} 14. Qe2 {[%emt 0:08:38]} Ndf6 {[%emt 0:06:38]} 15. Re1 {[%emt 0:02:06]} Ng8 {[%emt 0:04:15]} 16. Nd5 {[%emt 0:12:19]} Nef6 {[%emt 0:05:16]} 17. Nh4 {[%emt 0:04:50]} Nxd5 {[%emt 0:02:42]} 18. Qd3 {[%emt 0:11:36]} Bf5 {[%emt 0:01:05]} 19. Nxf5 {[%emt 0:01:47]} Rxf5 {[%emt 0:00:06]} 20. g4 {[%emt 0:00:52]} Nb4 {[%emt 0:03:52]} 21. Qe4 {[%emt 0:02:16]} d5 {[%emt 0:08:23]} 22. Qg2 {[%emt 0:04:37]} Rf8 {[%emt 0:06:28]} 23. Re2 {[%emt 0:01:09]} Qd6 {[%emt 0:01:50]} 24. c3 {[%emt 0:00:16]} Nd3 {[%emt 0:00:29]} 25. Bxd5 {[%emt 0:00:20]} Nxc1 {[%emt 0:02:26]} 1/2-1/2

[Event "CHI-ch Women 2020"]
[Site "Las Condes"]
[Date "2020.02.17"]
[Round "8.7"]
[White "Melin Contreras, Valeria"]
[Black "Fuentes Inzunza, Lesly"]
[Result "1-0"]
[ECO "B12"]
[WhiteElo "1685"]
[BlackElo "1851"]
[Annotator "NA RC"]
[PlyCount "73"]
[EventDate "2020.02.11"]
[EventType "tourn"]
[EventCountry "CHI"]
[SourceTitle "playchess.com"]
[Source "ChessBase"]
[SourceQuality "1"]
[TimeControl "5400+30"]

{[%evp 8,62,43,40,32767,50,33,35,25,18,17,13,64,32767,32767,32767,32767,29,59,32767,22,30,27,23,32767,0,3,0,32767,32767,0,32767,106,108,85,85,78,112,84,78,102,120,110,97,172,72,157,155,254,289,258,275,32767,306,305,287,417]} 1. e4 {[%emt 0:04:50]} c6 {[%emt 0:01:39]} 2. d4 {[%emt 0:00:18]} d5 {[%emt 0:00:07]} 3. Nc3 {[%emt 0:00:24]} dxe4 {[%emt 0:00:16]} 4. Nxe4 {[%emt 0:00:08]} g6 {[%emt 0:01:11]} 5. c3 {[%emt 0:00:32]} Bg7 {[%emt 0:00:38]} 6. Nf3 {[%emt 0:00:23]} Nf6 {[%emt 0:01:02]} 7. Nxf6+ {[%emt 0:02:05]} exf6 {[%emt 0:00:21]} 8. Bc4 {[%emt 0:01:51]} O-O {[%emt 0:04:15]} 9. O-O {[%emt 0:00:17]} Bg4 {[%emt 0:01:25] B12: Caro-Kann: Advance Variation.} 10. h3 {[%emt 0:01:19]} Bxf3 {[%emt 0:00:59]} 11. Qxf3 {[%emt 0:00:09]} Nd7 {[%emt 0:00:41] [#]} 12. h4 $146 {[%emt 0:03:35]} ({Predecessor:} 12. Bb3 f5 13. Bf4 Nb6 14. Rad1 a5 15. a3 a4 16. Ba2 Re8 17. Rfe1 Rxe1+ 18. Rxe1 {1-0 (35) Skembris,S (2470)-Sprecic,M (2330) Tuzla 1990}) 12... h5 {[%emt 0:04:32]} 13. Bf4 {[%emt 0:12:49]} Nb6 {[%emt 0:04:11]} 14. Bb3 {[%emt 0:00:31]} Qd7 {[%emt 0:04:20]} 15. Rfe1 {[%emt 0:02:55]} Rfe8 {[%emt 0:03:12]} 16. Kf1 {[%emt 0:09:47]} Qf5 {[%emt 0:03:39]} 17. Qg3 {[%emt 0:11:56]} a5 {[%emt 0:13:26]} 18. a4 {[%emt 0:20:30]} Nd5 {[%emt 0:02:42]} 19. Bd2 {[%emt 0:02:56]} b5 {[%emt 0:07:32]} (19... Bf8 $11) 20. axb5 {[%emt 0:02:42]} Rxe1+ {[%emt 0:10:52]} 21. Rxe1 {[%emt 0:04:05]} a4 {[%emt 0:25:13]} 22. Bxd5 {[%emt 0:01:44]} Qxd5 {[%emt 0:01:39]} 23. bxc6 {[%emt 0:00:27]} Qxc6 {[%emt 0:00:09] [#]} 24. Qd3 $1 {[%emt 0:02:06]} Rb8 {[%emt 0:01:27]} 25. Bc1 {[%emt 0:01:05]} Rb3 {[%emt 0:00:43] [#]} (25... Qd7 $16 {was necessary.} 26. Qa6 f5) 26. Qe4 {[%emt 0:01:10]} (26. d5 $1 $18 {[%cal Rd5c6] and White stays clearly on top.} Qd7 27. Kg1) 26... Qc4+ {[%emt 0:01:21] [#]} (26... Qxe4 $142 27. Rxe4 a3 28. bxa3 Rxc3) 27. Qe2 $1 {[%emt 0:00:50]} Qc7 {[%emt 0:00:13]} (27... Qxe2+ $142 28. Kxe2 a3 29. bxa3 Rxc3) 28. Qe8+ {[%emt 0:00:38] Double Attack} Kh7 {[%emt 0:00:01]} 29. Qxa4 {[%emt 0:01:03]} Rb7 {[%emt 0:00:30]} 30. Kg1 {[%emt 0:00:56]} Ra7 {[%emt 0:03:00]} 31. Qe8 {[%emt 0:01:15]} Ra1 $18 {[%emt 0:01:24]} 32. d5 {[%emt 0:04:12]} f5 {[%emt 0:01:36]} 33. Qc6 {[%emt 0:03:27]} Qd8 {[%emt 0:00:36]} 34. Bd2 {[%emt 0:01:18]} Ra7 {[%emt 0:00:57]} 35. Bg5 {[%emt 0:00:51]} f6 {[%emt 0:00:13]} 36. Be3 {[%emt 0:00:33]} Rd7 {[%emt 0:00:27]} 37. Bb6 {[%emt 0:00:27]} 1-0

[Event "CHI-ch Women 2020"]
[Site "Las Condes"]
[Date "2020.02.17"]
[Round "8.8"]
[White "Sanchez Tobar, Francisca Valentina"]
[Black "Luna Benalcazar, Gianella"]
[Result "1-0"]
[ECO "C47"]
[WhiteElo "1757"]
[BlackElo "1756"]
[Annotator "NA RC"]
[PlyCount "53"]
[EventDate "2020.02.11"]
[EventType "tourn"]
[EventCountry "CHI"]
[SourceTitle "playchess.com"]
[Source "ChessBase"]
[SourceQuality "1"]
[TimeControl "5400+30"]

1. e4 {[%emt 0:07:38]} e5 {[%emt 0:00:00]} 2. Nf3 {[%emt 0:00:12]} Nc6 {[%emt 0:00:00]} 3. Nc3 {[%emt 0:00:08]} Nf6 {[%emt 0:00:08]} 4. d4 {[%emt 0:00:08]} exd4 {[%emt 0:00:00]} 5. Nxd4 {[%emt 0:00:03]} Bb4 {[%emt 0:00:41]} 6. Nxc6 {[%emt 0:00:19]} Bxc3+ {[%emt 0:00:49]} 7. bxc3 {[%emt 0:00:22]} bxc6 {[%emt 0:00:07]} 8. Bd3 {[%emt 0:00:12]} d5 {[%emt 0:00:17]} 9. exd5 {[%emt 0:00:11]} cxd5 {[%emt 0:00:19]} 10. O-O {[%emt 0:00:10]} O-O {[%emt 0:00:09]} 11. Bg5 {[%emt 0:00:20]} Qd6 {[%emt 0:00:08]} 12. Bxf6 {[%emt 0:01:09]} Qxf6 {[%emt 0:00:05]} 13. Qh5 {[%emt 0:00:09]} g6 {[%emt 0:01:14]} 14. Qxd5 {[%emt 0:00:15]} Be6 {[%emt 0:00:18]} 15. Qc5 {[%emt 0:02:50]} Rfd8 {[%emt 0:00:28]} 16. Qxc7 {[%emt 0:03:01]} Rdc8 {[%emt 0:00:44]} 17. Qa5 {[%emt 0:02:09]} Qxc3 {[%emt 0:00:25]} 18. Qxc3 {[%emt 0:03:09]} Rxc3 {[%emt 0:00:16]} 19. Rfb1 {[%emt 0:01:07]} Ra3 {[%emt 0:00:16]} 20. Rb2 {[%emt 0:00:12]} Kg7 {[%emt 0:00:43]} 21. f3 {[%emt 0:00:37]} Rd8 {[%emt 0:00:31]} 22. Rb7 {[%emt 0:00:23]} Bxa2 {[%emt 0:00:03]} 23. Rb2 {[%emt 0:00:12]} Rd5 {[%emt 0:03:55]} 24. Rbxa2 {[%emt 0:00:24]} Rxa2 {[%emt 0:00:04]} 25. Rxa2 {[%emt 0:00:13]} a5 {[%emt 0:00:01]} 26. Kf2 {[%emt 0:00:11]} Re5 {[%emt 0:00:10]} 27. c4 {[%emt 0:00:39]} 1-0

[Event "CHI-ch Women 2020"]
[Site "Las Condes"]
[Date "2020.02.18"]
[Round "9.6"]
[White "Gomez Barrera, Javiera Belen"]
[Black "Hormazabal Figueroa, Constanza Valentina"]
[Result "1-0"]
[ECO "B41"]
[WhiteElo "2051"]
[BlackElo "1786"]
[Annotator "NA"]
[PlyCount "45"]
[EventDate "2020.02.11"]
[EventType "tourn"]
[EventCountry "CHI"]
[SourceTitle "playchess.com"]
[Source "ChessBase"]
[SourceQuality "1"]
[TimeControl "5400+30"]

1. e4 {[%emt 0:00:24]} c5 {[%emt 0:00:00]} 2. Nf3 {[%emt 0:00:11]} e6 {[%emt 0:00:00]} 3. d4 {[%emt 0:00:15]} cxd4 {[%emt 0:00:01]} 4. Nxd4 {[%emt 0:00:06]} a6 {[%emt 0:00:11]} 5. c4 {[%emt 0:02:22]} Nf6 {[%emt 0:00:52]} 6. Nc3 {[%emt 0:00:19]} Qc7 {[%emt 0:00:15]} 7. Be2 {[%emt 0:05:52]} Bb4 {[%emt 0:03:09]} 8. Qd3 {[%emt 0:00:23]} d6 {[%emt 0:02:29]} 9. Nc2 {[%emt 0:03:39]} Bc5 {[%emt 0:02:39]} ({Black should try} 9... Bxc3+ $14 10. Qxc3 b5) 10. b4 $16 {[%emt 0:15:13]} Ba7 {[%emt 0:01:22]} 11. Be3 {[%emt 0:28:06]} Bxe3 {[%emt 0:03:20]} 12. Nxe3 {[%emt 0:01:55]} Nc6 {[%emt 0:12:47]} 13. a3 {[%emt 0:00:38]} O-O {[%emt 0:00:51]} 14. O-O {[%emt 0:05:05]} b6 {[%emt 0:08:21]} 15. Rac1 {[%emt 0:02:46]} Ne5 {[%emt 0:00:57]} 16. Qd4 {[%emt 0:02:11]} Rd8 {[%emt 0:03:12]} 17. f3 {[%emt 0:06:52]} Nc6 {[%emt 0:14:42]} 18. Qd2 {[%emt 0:01:09]} Bb7 {[%emt 0:02:29]} 19. Ncd5 {[%emt 0:04:48]} exd5 {[%emt 0:00:23]} 20. cxd5 {[%emt 0:00:02]} Qd7 {[%emt 0:00:10]} 21. dxc6 {[%emt 0:00:09]} Bxc6 {[%emt 0:00:08]} 22. Nf5 {[%emt 0:03:52]} Ne8 {[%emt 0:06:28]} 23. Rxc6 {[%emt 0:00:46]} 1-0

[Event "CHI-ch Women 2020"]
[Site "Las Condes"]
[Date "2020.02.18"]
[Round "9.7"]
[White "Morales Flores, Monserrat"]
[Black "Reyes Jara, Paula"]
[Result "1-0"]
[ECO "C46"]
[WhiteElo "1955"]
[BlackElo "1860"]
[Annotator "NA"]
[PlyCount "55"]
[EventDate "2020.02.11"]
[EventType "tourn"]
[EventCountry "CHI"]
[SourceTitle "playchess.com"]
[Source "ChessBase"]
[SourceQuality "1"]
[TimeControl "5400+30"]

1. e4 {[%emt 0:00:41]} e5 {[%emt 0:04:29]} 2. Nf3 {[%emt 0:00:06]} Nc6 {[%emt 0:00:39]} 3. Nc3 {[%emt 0:00:06]} Bc5 {[%emt 0:01:08]} 4. Nxe5 {[%emt 0:04:17]} Bxf2+ {[%emt 0:01:46]} 5. Kxf2 {[%emt 0:00:06]} Nxe5 {[%emt 0:00:05]} 6. d4 {[%emt 0:02:41]} Ng6 {[%emt 0:01:12]} 7. Be2 {[%emt 0:01:04]} Qh4+ {[%emt 0:02:43]} 8. g3 {[%emt 0:00:28]} Qf6+ {[%emt 0:00:09]} 9. Kg2 {[%emt 0:00:45]} N8e7 {[%emt 0:02:13]} 10. Rf1 $18 {[%emt 0:01:48]} Qb6 {[%emt 0:02:29]} 11. a4 {[%emt 0:03:37]} c6 {[%emt 0:14:15]} 12. Qd3 {[%emt 0:19:16]} O-O {[%emt 0:07:21]} 13. e5 {[%emt 0:04:21]} d5 {[%emt 0:05:50]} 14. exd6 {[%emt 0:05:49]} Nf5 {[%emt 0:06:23]} 15. Rxf5 {[%emt 0:00:24]} Bxf5 {[%emt 0:00:08]} 16. Qxf5 {[%emt 0:01:16]} Qxd4 {[%emt 0:00:08]} 17. Bf4 {[%emt 0:06:27]} Rad8 {[%emt 0:03:43]} 18. Rd1 {[%emt 0:04:25]} Qb4 {[%emt 0:00:08]} 19. Ne4 {[%emt 0:06:16]} Qxb2 {[%emt 0:06:17]} 20. Bd3 {[%emt 0:05:54]} Qb4 {[%emt 0:03:04]} 21. h4 {[%emt 0:01:19]} Qxa4 {[%emt 0:05:40]} 22. h5 {[%emt 0:00:28]} Nxf4+ {[%emt 0:00:06]} 23. gxf4 {[%emt 0:00:03]} g6 {[%emt 0:02:30]} 24. Nf6+ {[%emt 0:00:12]} Kg7 {[%emt 0:10:28]} 25. h6+ {[%emt 0:00:07]} Kh8 {[%emt 0:00:52]} 26. Qe5 {[%emt 0:00:05]} Qa3 {[%emt 0:01:40]} 27. Nd7+ {[%emt 0:00:29]} f6 {[%emt 0:00:23]} 28. Qe7 {[%emt 0:00:28]} 1-0

[Event "CHI-ch Women 2020"]
[Site "Las Condes"]
[Date "2020.02.18"]
[Round "9.8"]
[White "Luna Benalcazar, Gianella"]
[Black "Abarca Gonzalez, Damaris"]
[Result "1/2-1/2"]
[ECO "E16"]
[WhiteElo "1756"]
[BlackElo "2056"]
[Annotator "NA"]
[PlyCount "46"]
[EventDate "2020.02.11"]
[EventType "tourn"]
[EventCountry "CHI"]
[SourceTitle "playchess.com"]
[Source "ChessBase"]
[SourceQuality "1"]
[TimeControl "5400+30"]

1. d4 {[%emt 0:00:00]} e6 {[%emt 0:03:26]} 2. c4 {[%emt 0:00:00]} Nf6 {[%emt 0:00:05]} 3. Nc3 {[%emt 0:00:00]} Bb4 {[%emt 0:00:44]} 4. Nf3 {[%emt 0:00:07]} b6 {[%emt 0:00:24]} 5. g3 {[%emt 0:00:06]} Bb7 {[%emt 0:00:06]} 6. Bg2 {[%emt 0:00:05]} O-O {[%emt 0:00:27]} 7. O-O {[%emt 0:00:16]} d6 {[%emt 0:03:38]} 8. Bd2 {[%emt 0:01:19]} Nbd7 {[%emt 0:01:20]} 9. a3 {[%emt 0:00:09]} Bxc3 {[%emt 0:00:47]} 10. Bxc3 {[%emt 0:00:06]} Ne4 {[%emt 0:00:55]} 11. Qc2 {[%emt 0:01:48]} f5 {[%emt 0:04:17]} 12. Ne1 {[%emt 0:06:40]} Qg5 $11 {[%emt 0:10:42]} 13. b4 {[%emt 0:20:07]} Ndf6 {[%emt 0:01:52]} 14. Bb2 {[%emt 0:09:19]} Qh5 {[%emt 0:13:31]} 15. Nd3 {[%emt 0:01:09]} Ng4 {[%emt 0:06:09]} 16. h3 {[%emt 0:01:41]} Ngf6 {[%emt 0:08:21]} 17. Nf4 {[%emt 0:02:18]} Qf7 {[%emt 0:00:29]} 18. d5 {[%emt 0:09:34]} e5 {[%emt 0:22:40]} 19. Ne6 {[%emt 0:01:33]} Rfe8 {[%emt 0:00:09]} 20. g4 {[%emt 0:02:56]} g6 {[%emt 0:05:54]} 21. g5 {[%emt 0:01:52]} Nh5 {[%emt 0:00:42]} 22. Bxe4 {[%emt 0:02:13]} fxe4 {[%emt 0:00:11]} 23. f4 {[%emt 0:06:32]} Rxe6 {[%emt 0:00:52]} 1/2-1/2